bitfinex/quotes_ETHUSD_20241217
["timestamp","ask_amount","ask_price","bid_price","bid_amount"]
[1734458255291,12.9875138,3974.0,3973.9,0.81848166]
[1734458255492,15.15668519,3974.0,3973.9,0.81848166]
[1734458255801,17.7856075,3974.0,3973.9,0.81848166]
[1734458255958,15.15668519,3974.0,3973.9,0.81848166]
[1734458256375,17.25866869,3974.0,3973.9,0.81848166]
[1734458257055,15.15668519,3974.0,3973.9,0.81848166]
[1734458257257,17.2579344,3974.0,3973.9,0.81848166]
[1734458257482,17.25711565,3974.0,3973.9,0.81848166]
[1734458257689,12.63951644,3974.0,3973.9,0.81848166]
[1734458257888,14.74076565,3974.0,3973.9,0.81848166]
[1734458258154,15.15586644,3974.0,3973.9,0.81848166]
[1734458258356,17.25640678,3974.0,3973.9,0.81848166]
[1734458258689,17.25637954,3974.0,3973.9,0.81848166]
[1734458259010,15.15387314,3974.0,3973.9,0.81848166]
[1734458259156,15.15385726,3974.0,3973.9,0.81848166]
[1734458259359,13.67314107,3974.0,3973.9,0.81848166]
[1734458260010,0.7955,3973.7,3973.1,0.84518656]
[1734458260304,2.91882418,3973.2,3973.1,0.84518656]
[1734458262607,10.34055629,3973.2,3973.1,0.84518656]
[1734458262908,11.39055436,3973.2,3973.1,0.84518656]
[1734458263115,7.82369629,3973.2,3973.1,0.84518656]
[1734458263328,5.91882418,3973.2,3973.1,0.84518656]
[1734458263992,6.5837429,3973.2,3973.1,0.84518656]
[1734458266113,6.5837429,3973.2,3972.3,0.87189146]
[1734458266114,3.55,3973.1,3972.3,0.87189146]
[1734458266314,2.36882418,3972.4,3972.3,0.87189146]
[1734458266512,2.91882418,3972.4,3972.3,0.87189146]
[1734458267180,3.9608066,3972.4,3972.3,0.87189146]
[1734458267389,3.2107066,3972.4,3972.3,0.87189146]
[1734458267601,2.91882418,3972.4,3972.3,0.87189146]
[1734458271011,2.36882418,3972.4,3972.3,1.66929146]
[1734458274011,2.36882418,3972.4,3972.3,0.87189146]
[1734458274214,2.91882418,3972.4,3972.3,0.87189146]
[1734458275922,2.36882418,3972.4,3972.3,0.87189146]
[1734458276487,2.36882418,3972.4,3972.3,1.66929146]
[1734458278085,2.36882418,3972.8,3972.3,1.66929146]
[1734458278293,0.55,3972.7,3972.3,1.66929146]
[1734458279121,2.36882418,3972.8,3972.3,1.66929146]
[1734458279339,0.55,3972.7,3972.3,1.66929146]
[1734458279806,2.36882418,3972.8,3972.3,1.66929146]
[1734458280750,0.55,3972.7,3972.3,1.66929146]
[1734458282507,0.55,3972.7,3972.3,1.83622061]
[1734458285356,0.55,3972.7,3972.3,1.66929146]
[1734458285707,0.55,3972.7,3972.3,0.87189146]
[1734458288466,0.55,3972.5,3972.3,0.87189146]
[1734458288696,0.55,3972.7,3972.3,0.87189146]
[1734458291551,2.36882418,3972.4,3972.3,0.87189146]
[1734458291750,3.1557066,3972.4,3972.3,0.87189146]
[1734458291962,3.9660066,3972.4,3972.3,0.87189146]
[1734458293220,3.1557066,3972.4,3972.3,0.87189146]
[1734458296578,4.26784992,3972.4,3972.3,0.87189146]
[1734458296819,6.12721256,3972.4,3972.3,0.87189146]
[1734458297163,6.65314703,3972.4,3972.3,0.87189146]
[1734458297511,7.17877647,3972.4,3972.3,0.87189146]
[1734458297732,6.65695351,3972.4,3972.3,0.87189146]
[1734458298004,6.56225579,3972.4,3972.3,0.87189146]
[1734458298410,8.66225193,3972.4,3972.3,0.87189146]
[1734458299319,6.56225579,3972.4,3972.3,0.87189146]
[1734458299809,5.75195579,3972.4,3972.3,0.87189146]
[1734458300122,5.61102312,3972.4,3972.3,0.87189146]
[1734458300406,5.61157271,3972.4,3972.3,0.87189146]
[1734458300774,4.03159791,3972.4,3972.3,0.87189146]
[1734458300991,5.51673001,3972.4,3972.3,0.87189146]
[1734458301218,5.61158188,3972.4,3972.3,0.87189146]
[1734458301436,4.03159791,3972.4,3972.3,0.87189146]
[1734458301576,5.61181525,3972.4,3972.3,0.87189146]
[1734458301778,5.51699009,3972.4,3972.3,0.87189146]
[1734458302077,5.51826648,3972.4,3972.3,0.87189146]
[1734458302693,5.61322222,3972.4,3972.3,0.87189146]
[1734458302895,4.0328743,3972.4,3972.3,0.87189146]
[1734458303507,4.0328743,3972.4,3972.3,1.87208061]
[1734458303508,1.11405012,3972.4,3972.3,1.87208061]
[1734458303713,1.05362386,3972.8,3972.4,0.83]
[1734458304018,2.10598076,3973.2,3972.4,0.83]
[1734458304019,1.05362386,3973.2,3972.4,0.83]
[1734458304549,1.05362386,3973.3,3972.4,0.83]
[1734458304747,1.58034792,3973.5,3972.4,0.83]
[1734458304748,2.16739758,3973.2,3972.4,0.83]
[1734458305039,1.11377372,3973.1,3972.6,0.83]
[1734458305249,2.16739758,3973.1,3972.6,0.83]
[1734458305399,1.05362386,3973.2,3972.6,0.83]
[1734458306137,0.55,3973.0,3972.6,0.83]
[1734458306437,0.55,3973.1,3972.6,0.83]
[1734458306641,1.05362386,3973.2,3972.6,0.83]
[1734458306642,0.55,3973.2,3972.6,1.03592887]
[1734458306837,2.71729586,3973.2,3972.6,1.03592887]
[1734458307040,1.60362386,3973.2,3972.6,1.03592887]
[1734458307243,0.55,3973.0,3972.6,1.03592887]
[1734458307947,0.55,3973.2,3972.6,1.03592887]
[1734458308264,2.71718477,3973.2,3972.6,1.03592887]
[1734458308445,0.55,3973.2,3972.6,1.03592887]
[1734458309103,0.55,3973.2,3972.6,0.83]
[1734458309104,3.97244804,3973.2,3972.6,0.83]
[1734458309314,0.55,3973.0,3972.6,0.83]
[1734458309744,0.55,3973.1,3972.6,0.83]
[1734458312325,0.55,3973.3,3972.6,1.00018915]
[1734458312570,1.05362386,3973.4,3972.6,1.00018915]
[1734458312571,0.55,3973.4,3972.6,1.00018915]
[1734458312923,3.55,3973.5,3972.6,1.00018915]
[1734458314148,4.60362386,3973.5,3972.6,1.00018915]
[1734458314674,0.55,3973.3,3972.6,1.00018915]
[1734458314975,0.55,3973.3,3972.6,0.83]
[1734458315184,0.55,3973.4,3972.6,0.83]
[1734458315525,2.36882418,3973.2,3972.6,0.83]
[1734458315722,3.55,3973.1,3972.6,0.83]
[1734458317027,4.3622,3973.1,3972.3,1.68119146]
[1734458317226,0.55,3972.9,3972.3,1.68119146]
[1734458318740,0.55,3973.0,3972.3,1.68119146]
[1734458320476,0.55,3973.0,3972.4,0.8093]
[1734458321394,5.36882418,3973.2,3972.4,0.8093]
[1734458322278,2.36882418,3973.2,3972.4,0.8093]
[1734458322485,2.36882418,3973.2,3972.4,0.97741915]
[1734458323383,0.55,3973.1,3972.4,0.97741915]
[1734458326384,2.36882418,3973.2,3972.4,0.97741915]
[1734458329114,0.55,3973.1,3972.4,0.8093]
[1734458331374,0.8047,3973.0,3972.3,0.87189146]
[1734458332975,0.55,3973.1,3972.3,0.87189146]
[1734458333179,1.66262989,3973.1,3972.3,0.87189146]
[1734458333517,1.60362386,3973.1,3972.3,0.87189146]
[1734458334083,1.11266246,3973.0,3972.3,0.87189146]
[1734458334418,1.60362386,3973.1,3972.3,0.87189146]
[1734458335150,1.11270185,3973.0,3972.3,0.87189146]
[1734458335300,2.23937346,3973.1,3972.3,0.87189146]
[1734458335503,1.11270477,3973.0,3972.3,0.87189146]
[1734458335728,2.23937346,3973.1,3972.3,0.87189146]
[1734458335729,1.60362386,3973.1,3972.3,0.87189146]
[1734458335916,1.11272424,3973.0,3972.3,0.87189146]
[1734458336241,1.60362386,3973.1,3972.3,0.87189146]
[1734458336445,1.11272475,3973.0,3972.3,0.87189146]
[1734458336648,1.60362386,3973.1,3972.3,0.87189146]
[1734458336940,1.11276098,3973.0,3972.3,0.87189146]
[1734458337126,1.05362386,3973.0,3972.3,0.87189146]
[1734458337324,1.60362386,3973.1,3972.3,0.87189146]
[1734458337637,1.11275494,3973.0,3972.3,0.87189146]
[1734458337837,1.60362386,3973.1,3972.3,0.87189146]
[1734458338039,1.09380036,3972.8,3972.3,0.87189146]
[1734458338374,1.60362386,3973.1,3972.5,0.791]
[1734458338375,0.55,3973.1,3972.5,0.791]
[1734458338562,1.09380036,3973.1,3972.5,0.791]
[1734458340249,3.42330581,3973.3,3972.5,0.791]
[1734458340460,1.11282636,3973.2,3972.5,0.791]
[1734458340641,3.42330581,3973.3,3972.6,0.18291806]
[1734458340811,1.11287686,3973.2,3972.6,0.18291806]
[1734458341012,1.11289284,3973.1,3972.6,0.18291806]
[1734458341212,1.05362386,3973.2,3972.6,0.18291806]
[1734458341713,3.42330581,3973.3,3972.6,0.18291806]
[1734458341910,1.11295713,3973.2,3972.5,0.791]
[1734458342156,2.36968195,3973.3,3972.5,0.791]
[1734458342357,1.11295552,3973.2,3972.5,0.791]
[1734458342546,3.42330581,3973.3,3972.5,0.791]
[1734458342859,1.11304999,3973.2,3972.5,0.791]
[1734458343022,1.05362386,3973.2,3972.5,0.95728915]
[1734458343460,1.11311215,3973.1,3972.5,0.95728915]
[1734458343629,1.05362386,3973.2,3972.5,0.95728915]
[1734458343831,1.1133981,3973.1,3972.5,0.95728915]
[1734458344147,1.05362386,3973.3,3972.5,0.95728915]
[1734458344347,1.05362386,3973.3,3972.6,0.18291806]
[1734458344554,1.11363803,3973.2,3972.6,0.18291806]
[1734458344756,1.05362386,3973.3,3972.6,0.18291806]
[1734458345064,1.11365499,3973.2,3972.6,0.18291806]
[1734458345229,1.05362386,3973.3,3972.6,0.18291806]
[1734458345424,2.16727495,3973.2,3972.6,0.18291806]
[1734458345624,1.11403399,3973.1,3972.6,0.18291806]
[1734458345879,1.05362386,3973.2,3972.6,0.18291806]
[1734458346371,1.05362386,3973.3,3972.6,0.18291806]
[1734458346677,1.05362386,3973.4,3972.7,0.7792]
[1734458346975,2.1678253,3973.4,3972.8,0.12818207]
[1734458347268,1.11423278,3973.3,3972.8,0.12818207]
[1734458347469,1.05362386,3973.8,3973.0,0.7792]
[1734458347773,5.00394305,3974.4,3973.1,0.7792]
[1734458347774,1.05362386,3973.9,3973.1,0.7792]
[1734458347934,1.05362386,3974.2,3973.2,0.86002735]
[1734458348134,1.05362386,3974.2,3973.3,0.7792]
[1734458348364,1.05362386,3974.3,3973.3,0.7792]
[1734458348546,1.05362386,3974.2,3973.3,0.7792]
[1734458348755,1.10134296,3974.1,3973.3,0.7792]
[1734458348941,2.15496682,3974.1,3973.3,0.7792]
[1734458349142,3.47111169,3974.0,3973.3,0.7792]
[1734458349343,2.36968195,3974.0,3973.3,0.7792]
[1734458349760,3.42330581,3974.0,3973.3,0.7792]
[1734458350348,2.36968195,3974.0,3973.3,0.7792]
[1734458353490,1.05362386,3974.2,3973.3,0.7792]
[1734458353790,1.60362386,3974.3,3973.3,0.7792]
[1734458354154,0.55,3974.1,3973.3,0.7792]
[1734458354356,2.91968195,3974.0,3972.7,0.7792]
[1734458354562,2.36968195,3973.6,3972.7,0.7792]
[1734458355309,0.8175,3973.5,3972.6,0.18291806]
[1734458355453,0.8175,3973.5,3971.1,0.24999413]
[1734458355454,3.0,3971.9,3970.5,2.59872458]
[1734458355659,3.16968195,3970.8,3970.0,0.7792]
[1734458355956,4.35665807,3970.8,3970.0,0.7792]
[1734458356184,3.16968195,3970.8,3970.0,0.7792]
[1734458356386,0.25,3970.5,3970.0,0.7792]
[1734458356607,3.68277761,3970.3,3970.0,0.95232062]
[1734458356783,5.02357678,3970.2,3970.0,0.95232062]
[1734458357107,3.68277761,3970.3,3970.0,0.95232062]
[1734458357108,5.02357678,3970.1,3970.0,0.95232062]
[1734458357511,3.04528354,3970.1,3970.0,0.95232062]
[1734458357825,5.67368252,3970.1,3970.0,0.95232062]
[1734458358224,3.04528354,3970.1,3970.0,0.95232062]
[1734458358387,5.67219383,3970.1,3970.0,0.95232062]
[1734458358729,3.04528354,3970.1,3970.0,0.95232062]
[1734458358929,5.67215297,3970.1,3970.0,0.95232062]
[1734458359088,3.04528354,3970.1,3970.0,0.95232062]
[1734458359287,5.67077792,3970.1,3970.0,0.95232062]
[1734458359487,3.04528354,3970.1,3970.0,0.95232062]
[1734458360433,5.14463743,3970.1,3970.0,0.95232062]
[1734458360789,1.57427285,3970.2,3970.0,1.38152855]
[1734458361003,1.0494844,3970.3,3970.0,1.20840793]
[1734458361238,1.0494844,3970.5,3970.1,0.42920793]
[1734458361528,1.30145921,3970.4,3970.1,0.42920793]
[1734458361735,1.0494844,3970.5,3970.1,0.42920793]
[1734458362028,1.30137204,3970.4,3970.1,0.42920793]
[1734458362229,1.0494844,3970.5,3970.2,0.21604141]
[1734458363229,1.0494844,3970.6,3970.2,0.21604141]
[1734458363457,1.30101272,3970.5,3970.2,0.21604141]
[1734458363638,1.0494844,3970.6,3970.2,0.21604141]
[1734458363817,1.3009048,3970.5,3970.2,0.21604141]
[1734458364018,1.0494844,3970.5,3970.3,0.14244493]
[1734458364204,1.0494844,3970.6,3970.3,0.14244493]
[1734458364534,1.30080477,3970.5,3970.3,0.14244493]
[1734458364754,1.0494844,3970.6,3970.3,0.14244493]
[1734458365057,1.30069959,3970.5,3970.3,0.14244493]
[1734458365218,1.0494844,3970.6,3970.3,0.14244493]
[1734458366328,1.0494844,3970.7,3970.3,0.14244493]
[1734458366544,1.30043456,3970.6,3970.3,0.14244493]
[1734458366757,1.0494844,3970.7,3970.3,0.14244493]
[1734458366960,1.30033427,3970.6,3970.3,0.14244493]
[1734458367142,1.0494844,3970.7,3970.3,0.14244493]
[1734458367345,1.30027263,3970.6,3970.3,0.14244493]
[1734458367529,1.0494844,3970.7,3970.3,0.14244493]
[1734458367732,1.30017024,3970.6,3970.3,0.14244493]
[1734458367943,1.0494844,3970.7,3970.3,0.14244493]
[1734458368145,1.0494844,3970.8,3970.3,0.14244493]
[1734458368473,1.30012713,3970.7,3970.3,0.14244493]
[1734458368647,1.0494844,3970.8,3970.3,0.14244493]
[1734458368821,1.30001438,3970.7,3970.3,0.14244493]
[1734458369021,1.0494844,3970.8,3970.3,0.14244493]
[1734458369265,2.34952165,3970.7,3970.3,0.14244493]
[1734458369465,1.0494844,3970.8,3970.3,0.14244493]
[1734458369789,1.29991178,3970.7,3970.3,0.14244493]
[1734458369968,1.0494844,3970.8,3970.3,0.14244493]
[1734458370265,2.34939684,3970.7,3970.3,0.14244493]
[1734458370564,1.0494844,3970.8,3970.3,0.14244493]
[1734458370767,1.29978626,3970.7,3970.3,0.14244493]
[1734458370920,1.0494844,3970.8,3970.3,0.14244493]
[1734458371134,1.29978094,3970.7,3970.3,0.14244493]
[1734458371378,1.0494844,3970.8,3970.3,0.14244493]
[1734458371550,1.0494844,3970.9,3970.3,0.14244493]
[1734458371730,1.29967431,3970.8,3970.3,0.14244493]
[1734458371933,1.0494844,3970.9,3970.3,0.14244493]
[1734458372130,1.29967074,3970.8,3970.3,0.14244493]
[1734458372365,1.0494844,3970.9,3970.3,0.14244493]
[1734458372580,1.0494844,3971.0,3970.3,0.14244493]
[1734458372897,1.29957503,3970.9,3970.3,0.14244493]
[1734458373051,1.0494844,3971.0,3970.3,0.14244493]
[1734458373252,1.29957419,3970.9,3970.3,0.14244493]
[1734458373448,1.0494844,3971.0,3970.3,0.14244493]
[1734458373657,1.29949348,3970.9,3970.3,0.14244493]
[1734458373836,1.0494844,3971.0,3970.3,0.14244493]
[1734458374073,1.0494844,3971.1,3970.4,0.8053]
[1734458374402,1.29945439,3971.0,3970.4,0.8053]
[1734458374542,2.62133526,3971.7,3970.4,0.8053]
[1734458374543,1.0494844,3971.2,3970.4,0.8053]
[1734458374742,1.29936769,3971.1,3970.4,0.8053]
[1734458375051,1.0494844,3971.1,3970.4,0.8053]
[1734458375374,1.0494844,3971.2,3970.4,0.8053]
[1734458375538,1.29942086,3971.1,3970.4,0.8053]
[1734458375886,1.0494844,3971.3,3970.4,0.8053]
[1734458376097,1.29929089,3971.2,3970.4,0.8053]
[1734458376302,1.0494844,3971.4,3970.5,0.8053]
[1734458376514,1.0494844,3971.5,3970.6,0.13769529]
[1734458376656,1.29921077,3971.4,3970.6,0.13769529]
[1734458376855,1.0494844,3971.5,3970.6,0.13769529]
[1734458377058,1.0494844,3971.6,3970.7,0.8053]
[1734458377288,1.0494844,3971.7,3970.8,0.13722032]
[1734458377671,1.29915722,3971.6,3970.8,0.13722032]
[1734458377863,1.0494844,3971.7,3970.8,0.13722032]
[1734458378074,1.29917426,3971.6,3970.8,0.13722032]
[1734458378269,2.34865866,3971.6,3970.8,0.13722032]
[1734458378470,1.0494844,3971.7,3970.9,0.43717283]
[1734458378678,1.29916881,3971.6,3970.9,0.43717283]
[1734458378980,1.0494844,3971.7,3970.8,0.13722032]
[1734458379179,1.29919136,3971.6,3970.8,0.13722032]
[1734458379381,1.0494844,3971.6,3970.8,0.13722032]
[1734458379769,2.34935389,3972.0,3970.8,0.13722032]
[1734458379770,1.0494844,3971.7,3970.8,0.13722032]
[1734458380507,1.29930151,3971.6,3970.8,0.13722032]
[1734458380708,1.0494844,3971.7,3970.9,0.43717283]
[1734458381000,1.29922845,3971.6,3970.9,0.43717283]
[1734458381203,2.34871285,3971.6,3970.9,0.43717283]
[1734458381506,1.0494844,3971.6,3970.9,0.43717283]
[1734458381678,1.0494844,3971.6,3970.8,0.13722032]
[1734458381873,1.29928514,3971.5,3970.8,0.13722032]
[1734458382073,1.0494844,3971.6,3970.8,0.13722032]
[1734458382707,1.29930047,3971.5,3970.8,0.13722032]
[1734458383006,1.0494844,3971.6,3970.8,0.13722032]
[1734458383307,1.29941681,3971.5,3970.9,0.43717283]
[1734458383605,1.0494844,3971.6,3970.9,0.43717283]
[1734458383914,1.0494844,3971.6,3970.8,0.13722032]
[1734458384077,1.29932586,3971.5,3970.8,0.13722032]
[1734458384408,1.0494844,3971.6,3970.8,0.13722032]
[1734458385013,1.0494844,3971.7,3970.8,0.13722032]
[1734458385330,2.34884643,3971.6,3970.8,0.13722032]
[1734458385472,0.25,3971.3,3970.7,0.8053]
[1734458385677,1.0494844,3971.1,3970.4,0.8053]
[1734458385921,2.34901365,3971.0,3970.4,0.8053]
[1734458386131,2.34901365,3970.9,3970.4,0.8053]
[1734458386429,1.0494844,3971.0,3970.4,0.8053]
[1734458386823,1.29968106,3970.9,3970.4,0.8053]
[1734458386992,1.0494844,3971.0,3970.4,0.8053]
[1734458387192,1.29968768,3970.9,3970.4,0.8053]
[1734458387402,1.0494844,3971.0,3970.4,0.8053]
[1734458388027,1.29966766,3970.9,3970.4,0.8053]
[1734458388231,1.0494844,3971.0,3970.4,0.8053]
[1734458389230,1.29969541,3970.9,3970.4,0.8053]
[1734458389431,1.0494844,3971.0,3970.4,0.8053]
[1734458389736,1.29970311,3970.9,3970.4,0.8053]
[1734458389937,1.0494844,3971.0,3970.4,0.8053]
[1734458390238,1.2997033,3970.9,3970.4,0.8053]
[1734458390541,1.0494844,3971.0,3970.4,0.8053]
[1734458390740,2.34923501,3970.9,3970.4,0.8053]
[1734458390909,1.0494844,3970.9,3970.4,0.8053]
[1734458391431,1.29984731,3970.8,3970.4,0.8053]
[1734458391636,1.0494844,3970.9,3970.4,0.8053]
[1734458391836,1.29984676,3970.8,3970.4,0.8053]
[1734458392143,1.0494844,3970.9,3970.4,0.8053]
[1734458392294,1.29992485,3970.8,3970.4,0.8053]
[1734458392489,1.0494844,3970.9,3970.4,0.8053]
[1734458392899,1.29992004,3970.8,3970.4,0.8053]
[1734458393102,1.0494844,3970.9,3970.4,0.8053]
[1734458393432,1.29998214,3970.8,3970.4,0.8053]
[1734458393634,1.0494844,3970.9,3970.4,0.8053]
[1734458393934,1.30009809,3970.8,3970.4,0.8053]
[1734458394232,1.30065076,3970.7,3970.4,0.8053]
[1734458394432,1.30065076,3970.7,3969.9,0.95200615]
[1734458394433,1.30067627,3970.6,3970.0,0.8043]
[1734458394636,1.30069972,3970.5,3970.0,0.8043]
[1734458394807,1.0494844,3970.6,3970.0,0.8043]
[1734458395137,1.30072023,3970.5,3970.0,0.8043]
[1734458395291,1.30072023,3970.4,3970.0,0.8043]
[1734458396200,1.30072023,3970.3,3970.0,0.8043]
[1734458396394,1.0494844,3970.4,3970.0,0.8043]
[1734458396595,1.0494844,3970.5,3970.0,0.8043]
[1734458396796,1.30184327,3970.4,3970.0,0.8043]
[1734458397018,2.35134554,3970.3,3969.9,0.95200615]
[1734458397232,1.30248135,3970.2,3969.9,0.95200615]
[1734458397451,1.30248135,3970.1,3969.9,0.95200615]
[1734458397737,1.0494844,3970.2,3969.9,0.95200615]
[1734458397945,1.30249635,3970.1,3969.9,0.95200615]
[1734458398100,1.0494844,3970.2,3969.9,0.95200615]
[1734458398295,2.35198108,3970.1,3969.9,0.95200615]
[1734458398515,1.30249668,3970.0,3969.9,0.95200615]
[1734458398811,1.30322733,3970.0,3969.9,0.95200615]
[1734458399252,2.35271173,3970.0,3969.9,0.95200615]
[1734458399596,2.35460456,3970.0,3969.9,0.95200615]
[1734458399797,1.30322733,3970.0,3969.9,0.95200615]
[1734458400347,3.04193971,3970.0,3969.9,0.95200615]
[1734458400558,6.59030882,3970.0,3969.9,0.95200615]
[1734458400856,3.96349636,3970.0,3969.9,0.95200615]
[1734458401426,6.1343189,3970.0,3969.9,0.95200615]
[1734458401648,3.96349636,3970.0,3969.9,0.95200615]
[1734458401803,7.12576865,3970.0,3969.9,0.95200615]
[1734458402447,3.96644988,3970.0,3969.9,0.95200615]
[1734458404207,3.04489323,3970.0,3969.9,0.95200615]
[1734458404412,3.04489323,3970.0,3969.9,1.74260615]
[1734458404604,5.67605281,3970.0,3969.9,1.74260615]
[1734458404805,2.88467272,3970.0,3969.9,1.74260615]
[1734458405227,2.88467272,3970.0,3969.9,0.95200615]
[1734458405444,1.30618085,3970.0,3969.9,0.95200615]
[1734458405631,3.04659163,3970.0,3969.9,0.95200615]
[1734458405816,5.1514889,3970.0,3969.9,0.95200615]
[1734458406150,5.67676996,3970.0,3969.9,0.95200615]
[1734458406307,3.04581323,3970.0,3969.9,0.95200615]
[1734458406502,6.3499809,3970.0,3969.9,0.95200615]
[1734458406707,3.71878422,3970.0,3969.9,0.95200615]
[1734458407458,6.34934113,3970.0,3969.9,0.95200615]
[1734458407945,3.71878422,3970.0,3969.9,0.95200615]
[1734458408121,5.67634688,3970.0,3969.9,0.95200615]
[1734458408316,5.14990387,3970.0,3969.9,0.95200615]
[1734458408531,5.14987386,3970.0,3969.9,0.95200615]
[1734458408847,3.40946308,3970.0,3969.9,0.95200615]
[1734458409061,5.14987386,3970.0,3969.9,0.95200615]
[1734458409207,3.04581323,3970.0,3969.9,0.95200615]
[1734458409404,1.30540245,3970.0,3969.9,0.95200615]
[1734458409865,2.35723486,3970.0,3969.9,0.95200615]
[1734458410045,1.05183241,3970.3,3969.9,1.12626676]
[1734458410225,1.05183241,3970.5,3970.0,0.7906]
[1734458410532,1.05183241,3970.8,3970.0,0.7906]
[1734458410727,1.30432665,3970.7,3970.0,3.40170793]
[1734458410914,1.05183241,3970.8,3970.1,1.27994306]
[1734458411114,1.30432334,3970.7,3970.1,1.27994306]
[1734458411318,1.05183241,3970.8,3970.1,1.27994306]
[1734458411548,1.05183241,3970.9,3970.2,0.7906]
[1734458411710,1.05183241,3971.1,3970.3,0.7906]
[1734458412051,1.05183241,3971.3,3970.6,0.7906]
[1734458412244,1.30411987,3971.2,3970.6,0.7906]
[1734458412550,1.05183241,3971.3,3970.6,0.7906]
[1734458412751,2.35585581,3971.2,3970.6,0.7906]
[1734458412928,1.3040234,3971.1,3970.6,0.7906]
[1734458413258,1.05183241,3971.2,3970.7,0.53778459]
[1734458413553,1.05183241,3971.2,3970.8,0.7906]
[1734458413771,1.05183241,3971.3,3970.8,0.7906]
[1734458413973,1.05183241,3971.3,3970.9,0.40170793]
[1734458414333,1.05183241,3971.4,3970.9,0.40170793]
[1734458414702,1.30384386,3971.3,3970.9,0.87109198]
[1734458414861,1.05183241,3971.4,3970.9,0.40170793]
[1734458415170,1.30384498,3971.3,3970.9,0.40170793]
[1734458415368,1.05183241,3971.4,3970.9,0.40170793]
[1734458415684,1.30373664,3971.3,3970.9,0.40170793]
[1734458415978,1.05183241,3971.4,3970.9,0.40170793]
[1734458416160,1.05183241,3971.4,3971.0,0.16938405]
[1734458416935,1.05183241,3971.5,3971.0,0.16938405]
[1734458417144,1.30361652,3971.4,3971.0,0.16938405]
[1734458417373,1.05183241,3971.5,3971.0,0.16938405]
[1734458417558,1.30350978,3971.4,3971.0,0.16938405]
[1734458417758,1.05183241,3971.5,3971.0,0.16938405]
[1734458417936,1.30351066,3971.4,3971.1,0.17271479]
[1734458418131,1.30351839,3971.3,3970.8,0.7906]
[1734458418331,1.05183241,3971.1,3970.2,0.40170793]
[1734458418563,1.05183241,3970.9,3970.2,0.40170793]
[1734458418762,2.3553508,3970.8,3970.2,0.40170793]
[1734458418952,1.30351839,3970.7,3970.2,0.40170793]
[1734458419272,1.05183241,3970.8,3970.2,0.40170793]
[1734458419840,1.57785938,3971.0,3970.2,0.40170793]
[1734458419841,1.05183241,3970.9,3970.2,0.93459834]
[1734458420071,1.3036675,3970.8,3970.3,0.76716382]
[1734458420281,1.05183241,3970.9,3970.3,0.76716382]
[1734458420480,1.30367387,3970.8,3970.3,0.76716382]
[1734458420635,1.05183241,3970.9,3970.3,0.76716382]
[1734458420843,1.30368115,3970.8,3970.3,0.76716382]
[1734458421148,1.05183241,3970.9,3970.3,0.76716382]
[1734458421353,1.30369038,3970.8,3970.3,0.76716382]
[1734458421536,1.05183241,3970.9,3970.3,0.76716382]
[1734458421736,2.35552671,3970.8,3970.3,0.76716382]
[1734458421937,1.05183241,3970.8,3970.3,0.76716382]
[1734458422184,1.05183241,3970.9,3970.3,0.76716382]
[1734458422337,1.30373803,3970.8,3970.3,0.76716382]
[1734458422688,1.05183241,3970.8,3970.3,0.76716382]
[1734458422982,1.05183241,3970.6,3970.0,0.7932]
[1734458423290,1.05183241,3970.4,3969.9,0.95200615]
[1734458423583,1.30376872,3970.3,3969.9,0.95200615]
[1734458423894,1.05183241,3970.3,3969.9,0.95200615]
[1734458424460,0.25,3970.1,3969.9,0.95200615]
[1734458424662,2.48612612,3970.0,3969.9,0.95200615]
[1734458424853,1.43429371,3970.0,3969.9,0.95200615]
[1734458425273,1.30411047,3970.0,3969.9,0.95200615]
[1734458426037,3.66246985,3970.0,3969.9,0.95200615]
[1734458426488,2.08461047,3970.0,3969.9,0.95200615]
[1734458427286,4.1886711,3970.0,3969.9,0.95200615]
[1734458427468,4.1886711,3970.0,3969.1,0.97871104]
[1734458427469,3.59280868,3970.0,3969.1,0.97871104]
[1734458427674,1.57769771,3969.2,3969.1,0.97871104]
[1734458427846,1.55411047,3969.2,3969.1,0.97871104]
[1734458428037,2.33461047,3969.2,3969.1,0.97871104]
[1734458428240,4.43820742,3969.2,3969.1,0.97871104]
[1734458428491,4.07330868,3969.2,3969.1,0.97871104]
[1734458428650,2.75869105,3969.2,3969.1,0.97871104]
[1734458429794,5.38818724,3969.2,3969.1,0.97871104]
[1734458430089,4.49738926,3969.2,3969.1,0.97871104]
[1734458430303,2.75869105,3969.2,3969.1,0.97871104]
[1734458430457,4.86074123,3969.2,3969.1,0.97871104]
[1734458430660,4.43666065,3969.2,3969.1,0.97871104]
[1734458430977,3.91109691,3969.2,3969.1,0.97871104]
[1734458431390,2.33461047,3969.2,3969.1,0.97871104]
[1734458432243,3.38521734,3969.2,3969.1,0.97871104]
[1734458432488,2.33461047,3969.2,3969.1,0.97871104]
[1734458433454,3.3850172,3969.2,3969.1,0.97871104]
[1734458433658,3.38373418,3969.2,3969.1,0.97871104]
[1734458434394,2.33332745,3969.2,3969.1,0.97871104]
[1734458434693,4.47173213,3969.7,3969.1,0.97871104]
[1734458434694,0.25,3969.4,3969.1,0.97871104]
[1734458435694,1.30040673,3970.0,3969.2,0.7932]
[1734458435990,0.25,3970.0,3969.2,1.14874127]
[1734458436209,0.25,3970.0,3969.3,0.35554127]
[1734458436361,0.25,3970.4,3969.4,0.02518815]
[1734458436712,0.25,3970.8,3969.5,1.44921875]
[1734458436997,2.36138644,3971.1,3969.6,0.92412505]
[1734458436998,1.30040673,3971.1,3969.6,0.92412505]
[1734458437220,1.30040673,3971.1,3969.8,0.7515]
[1734458437357,0.25,3971.1,3969.8,0.7515]
[1734458437558,0.25,3971.1,3969.7,0.71749269]
[1734458437559,0.25,3970.1,3969.9,0.37531521]
[1734458437857,0.25,3969.7,3969.1,0.97871104]
[1734458438111,0.25,3969.5,3969.1,0.97871104]
[1734458438260,1.0349,3969.5,3969.1,0.97871104]
[1734458438910,3.38783424,3969.5,3969.1,0.97871104]
[1734458439215,2.35293424,3969.4,3969.1,0.97871104]
[1734458439379,0.25,3969.2,3969.1,0.97871104]
[1734458439562,1.55245398,3969.2,3969.1,0.97871104]
[1734458439965,3.12894042,3969.2,3969.1,0.97871104]
[1734458440468,1.55245398,3969.2,3969.1,0.97871104]
[1734458441025,3.12753061,3969.2,3969.1,0.97871104]
[1734458441201,1.55245398,3969.2,3969.1,0.97871104]
[1734458441370,3.12715586,3969.2,3969.1,0.97871104]
[1734458441571,1.55245398,3969.2,3969.1,0.97871104]
[1734458442614,1.55186459,3969.2,3969.1,0.97871104]
[1734458442767,2.93817519,3969.2,3969.1,0.97871104]
[1734458442967,6.77629588,3969.2,3969.1,0.97871104]
[1734458443176,6.77629588,3969.2,3967.6,1.03212084]